[Event "*** Titled Tuesday Blitz"]
[Site "Chess.com"]
[Date "2021.03.09"]
[Round "6"]
[White "Deepweb2020"]
[Black "AniJak"]
[Result "1-0"]
[WhiteElo "2471"]
[BlackElo "2318"]
[TimeControl "180+1"]
[EndTime "11:11:33 PST"]
[Termination "Deepweb2020 won on time"]

1. d4 {[%clk 0:03:00.8]} 1... d5 {[%clk 0:02:58.6]} 2. c4 {[%clk 0:02:59.3]}
2... c6 {[%clk 0:02:58.5]} 3. cxd5 {[%clk 0:02:58.4]} 3... cxd5 {[%clk
0:02:58.3]} 4. Nc3 {[%clk 0:02:58.6]} 4... Nc6 {[%clk 0:02:58.2]} 5. Bf4 {[%clk
0:02:58.8]} 5... a6 {[%clk 0:02:58.9]} 6. e3 {[%clk 0:02:58.9]} 6... Nf6 {[%clk
0:02:59.2]} 7. Rc1 {[%clk 0:02:57.5]} 7... g6 {[%clk 0:02:58.6]} 8. h3 {[%clk
0:02:50.2]} 8... Bg7 {[%clk 0:02:57.8]} 9. Bd3 {[%clk 0:02:47.3]} 9... O-O
{[%clk 0:02:56.4]} 10. Nf3 {[%clk 0:02:44.9]} 10... Bf5 {[%clk 0:02:55.9]} 11.
g4 {[%clk 0:02:44.6]} 11... Bxd3 {[%clk 0:02:51.2]} 12. Qxd3 {[%clk 0:02:44.7]}
12... Rc8 {[%clk 0:02:46.8]} 13. O-O {[%clk 0:02:43.5]} 13... b5 {[%clk
0:02:44.1]} 14. Nd2 {[%clk 0:02:40.8]} 14... e6 {[%clk 0:02:18.2]} 15. Nb3
{[%clk 0:02:40.5]} 15... Nd7 {[%clk 0:01:59.6]} 16. a3 {[%clk 0:02:29.1]} 16...
Nb6 {[%clk 0:01:58.5]} 17. Nc5 {[%clk 0:02:26.6]} 17... b4 {[%clk 0:01:38.4]}
18. axb4 {[%clk 0:01:51]} 18... Nxb4 {[%clk 0:01:36.8]} 19. Qe2 {[%clk
0:01:51.4]} 19... Nd7 {[%clk 0:01:27.9]} 20. Nxa6 {[%clk 0:01:45.9]} 20... Qa5
{[%clk 0:01:20.5]} 21. Bd6 {[%clk 0:01:16]} 21... Nxa6 {[%clk 0:01:16.6]} 22.
Bxf8 {[%clk 0:01:15.4]} 22... Bxf8 {[%clk 0:01:14.7]} 23. Ra1 {[%clk 0:01:15.4]}
23... Qb4 {[%clk 0:00:59.4]} 24. Rxa6 {[%clk 0:01:02.2]} 24... Rb8 {[%clk
0:00:50.1]} 25. Ra7 {[%clk 0:00:44.5]} 25... Nf6 {[%clk 0:00:49.3]} 26. Raa1
{[%clk 0:00:35.5]} 26... Qxb2 {[%clk 0:00:43.6]} 27. Qxb2 {[%clk 0:00:35.2]}
27... Rxb2 {[%clk 0:00:44.5]} 28. Rab1 {[%clk 0:00:36.1]} 28... Rc2 {[%clk
0:00:43.9]} 29. Rfc1 {[%clk 0:00:36.7]} 29... Rd2 {[%clk 0:00:38.5]} 30. Kf1
{[%clk 0:00:33.5]} 30... Ba3 {[%clk 0:00:32.5]} 31. Rd1 {[%clk 0:00:21.4]} 31...
Rc2 {[%clk 0:00:32.9]} 32. Nb5 {[%clk 0:00:20.5]} 32... Be7 {[%clk 0:00:26.6]}
33. Rdc1 {[%clk 0:00:20.5]} 33... Ra2 {[%clk 0:00:26.2]} 34. Nc3 {[%clk
0:00:19.2]} 34... Ra3 {[%clk 0:00:23.3]} 35. Nb5 {[%clk 0:00:18.3]} 35... Ra2
{[%clk 0:00:22.2]} 36. Nc3 {[%clk 0:00:18.7]} 36... Ra3 {[%clk 0:00:22.2]} 37.
Rb7 {[%clk 0:00:18.3]} 37... Bf8 {[%clk 0:00:15.7]} 38. Nb5 {[%clk 0:00:16.9]}
38... Ra2 {[%clk 0:00:15.1]} 39. Nc3 {[%clk 0:00:16.6]} 39... Ra3 {[%clk
0:00:14.8]} 40. Ke2 {[%clk 0:00:15.5]} 40... Kg7 {[%clk 0:00:11]} 41. Kd3 {[%clk
0:00:15.6]} 41... Ne4 {[%clk 0:00:10]} 42. Rc2 {[%clk 0:00:09.4]} 42... Nd6
{[%clk 0:00:05.4]} 43. Rb1 {[%clk 0:00:03.1]} 43... Nc4 {[%clk 0:00:05.6]} 44.
Ke2 {[%clk 0:00:02.8]} 44... h5 {[%clk 0:00:01.6]} 45. Nb5 {[%clk 0:00:03.2]}
1-0

[Event "*** Titled Tuesday Blitz"]
[Site "Chess.com"]
[Date "2021.03.09"]
[Round "6"]
[White "witcher8"]
[Black "Eloist"]
[Result "1/2-1/2"]
[WhiteElo "2457"]
[BlackElo "2324"]
[TimeControl "180+1"]
[EndTime "11:11:33 PST"]
[Termination "Game drawn by repetition"]

1. e4 {[%clk 0:03:00.9]} 1... e6 {[%clk 0:03:00]} 2. d4 {[%clk 0:03:00.7]} 2...
d5 {[%clk 0:03:00.3]} 3. Nc3 {[%clk 0:03:01.3]} 3... Nf6 {[%clk 0:03:00.7]} 4.
e5 {[%clk 0:03:01.4]} 4... Nfd7 {[%clk 0:03:00.9]} 5. f4 {[%clk 0:03:02]} 5...
c5 {[%clk 0:03:01.3]} 6. Nf3 {[%clk 0:03:02.9]} 6... Nc6 {[%clk 0:03:01.7]} 7.
Be3 {[%clk 0:03:03.5]} 7... a6 {[%clk 0:03:02]} 8. Qd2 {[%clk 0:03:03.7]} 8...
b5 {[%clk 0:03:02.4]} 9. dxc5 {[%clk 0:03:03.6]} 9... Bxc5 {[%clk 0:03:02.8]}
10. Bd3 {[%clk 0:03:04.1]} 10... Qb6 {[%clk 0:03:02.7]} 11. Bf2 {[%clk
0:03:03.3]} 11... Bxf2+ {[%clk 0:03:02.5]} 12. Qxf2 {[%clk 0:03:03.1]} 12... Nc5
{[%clk 0:03:03.4]} 13. O-O {[%clk 0:02:33.4]} 13... b4 {[%clk 0:02:58.6]} 14.
Ne2 {[%clk 0:02:31.4]} 14... a5 {[%clk 0:02:47.6]} 15. Rfc1 {[%clk 0:02:25.3]}
15... Ba6 {[%clk 0:02:43.9]} 16. a3 {[%clk 0:02:21.5]} 16... bxa3 {[%clk
0:02:31.8]} 17. bxa3 {[%clk 0:02:21.8]} 17... Rb8 {[%clk 0:02:18.3]} 18. Bxa6
{[%clk 0:02:19.2]} 18... Nxa6 {[%clk 0:02:17.8]} 19. Qxb6 {[%clk 0:02:19.2]}
19... Rxb6 {[%clk 0:02:17.4]} 20. Rab1 {[%clk 0:02:20.1]} 20... Rb8 {[%clk
0:02:06]} 21. Ned4 {[%clk 0:02:14.6]} 21... Kd7 {[%clk 0:02:00.1]} 22. Nb5
{[%clk 0:02:14.5]} 22... f6 {[%clk 0:01:55.9]} 23. c4 {[%clk 0:02:14]} 23...
fxe5 {[%clk 0:01:48.8]} 24. fxe5 {[%clk 0:02:14.2]} 24... dxc4 {[%clk
0:01:14.4]} 25. Rxc4 {[%clk 0:02:12.5]} 25... Ne7 {[%clk 0:01:03.5]} 26. Rd1+
{[%clk 0:01:50.5]} 26... Nd5 {[%clk 0:01:03.4]} 27. Nc3 {[%clk 0:01:44.6]} 27...
Nc7 {[%clk 0:00:51.1]} 28. Nxd5 {[%clk 0:01:30.2]} 28... Nxd5 {[%clk 0:00:50.7]}
29. Rc5 {[%clk 0:01:28.6]} 29... Rb2 {[%clk 0:00:35.4]} 30. Rxa5 {[%clk
0:01:14.9]} 30... Rc8 {[%clk 0:00:35.3]} 31. Ra7+ {[%clk 0:01:12.5]} 31... Rc7
{[%clk 0:00:35.4]} 32. Rxc7+ {[%clk 0:01:10.4]} 32... Kxc7 {[%clk 0:00:36.3]}
33. Ng5 {[%clk 0:01:02]} 33... Kd7 {[%clk 0:00:19.9]} 34. Nxh7 {[%clk
0:00:58.5]} 34... Re2 {[%clk 0:00:18.8]} 35. Nf8+ {[%clk 0:00:57.7]} 35... Ke7
{[%clk 0:00:17.4]} 36. Ng6+ {[%clk 0:00:57.7]} 36... Kf7 {[%clk 0:00:17.4]} 37.
Nh4 {[%clk 0:00:46.9]} 37... Ra2 {[%clk 0:00:15.2]} 38. Rd3 {[%clk 0:00:45.6]}
38... g5 {[%clk 0:00:14.8]} 39. Nf3 {[%clk 0:00:41.1]} 39... g4 {[%clk
0:00:12.9]} 40. Nd2 {[%clk 0:00:30.7]} 40... Kg6 {[%clk 0:00:12.6]} 41. g3
{[%clk 0:00:26.1]} 41... Kf5 {[%clk 0:00:12.7]} 42. Nc4 {[%clk 0:00:26.5]} 42...
Rc2 {[%clk 0:00:12]} 43. Ne3+ {[%clk 0:00:25.6]} 43... Nxe3 {[%clk 0:00:11.7]}
44. Rxe3 {[%clk 0:00:26.5]} 44... Ra2 {[%clk 0:00:11.6]} 45. Kf1 {[%clk
0:00:21.4]} 45... Rxh2 {[%clk 0:00:10.7]} 46. Ke1 {[%clk 0:00:21.9]} 46... Ra2
{[%clk 0:00:10.2]} 47. Kd1 {[%clk 0:00:22.4]} 47... Kg5 {[%clk 0:00:08.4]} 48.
Kc1 {[%clk 0:00:21.8]} 48... Kf5 {[%clk 0:00:08.8]} 49. Kb1 {[%clk 0:00:20.3]}
49... Rf2 {[%clk 0:00:08.6]} 50. Kc1 {[%clk 0:00:15.9]} 50... Ra2 {[%clk
0:00:07.8]} 51. Kd1 {[%clk 0:00:09]} 51... Rf2 {[%clk 0:00:06.9]} 52. Kc1 {[%clk
0:00:04.9]} 52... Ra2 {[%clk 0:00:07.1]} 1/2-1/2

[Event "*** Titled Tuesday Blitz"]
[Site "Chess.com"]
[Date "2021.03.09"]
[Round "6"]
[White "canary2016"]
[Black "norwaytoadog"]
[Result "1-0"]
[WhiteElo "2058"]
[BlackElo "2190"]
[TimeControl "180+1"]
[EndTime "11:11:33 PST"]
[Termination "canary2016 won on time"]

1. d4 {[%clk 0:03:00.9]} 1... Nf6 {[%clk 0:02:57.2]} 2. c4 {[%clk 0:03:00.6]}
2... e6 {[%clk 0:02:57.6]} 3. Nf3 {[%clk 0:03:00.4]} 3... Bb4+ {[%clk
0:02:57.4]} 4. Nc3 {[%clk 0:03:00.1]} 4... Bxc3+ {[%clk 0:02:47.5]} 5. bxc3
{[%clk 0:03:00.1]} 5... d6 {[%clk 0:02:47.2]} 6. g3 {[%clk 0:03:00.1]} 6... b6
{[%clk 0:02:46.6]} 7. Bg2 {[%clk 0:03:00.1]} 7... Bb7 {[%clk 0:02:46.8]} 8. O-O
{[%clk 0:03:00.8]} 8... O-O {[%clk 0:02:46.4]} 9. Qc2 {[%clk 0:02:58.1]} 9...
Nbd7 {[%clk 0:02:45]} 10. Nd2 {[%clk 0:02:57.6]} 10... Bxg2 {[%clk 0:02:42.3]}
11. Kxg2 {[%clk 0:02:57.7]} 11... e5 {[%clk 0:02:32.6]} 12. e4 {[%clk
0:02:53.7]} 12... c5 {[%clk 0:02:27.2]} 13. Nf3 {[%clk 0:02:51]} 13... cxd4
{[%clk 0:02:25.3]} 14. cxd4 {[%clk 0:02:50.9]} 14... Rc8 {[%clk 0:02:23.8]} 15.
Qb3 {[%clk 0:02:45.1]} 15... Nxe4 {[%clk 0:02:16.4]} 16. Re1 {[%clk 0:02:45]}
16... Nef6 {[%clk 0:02:00.7]} 17. dxe5 {[%clk 0:02:43.6]} 17... dxe5 {[%clk
0:01:56.7]} 18. Nxe5 {[%clk 0:02:33.2]} 18... Nc5 {[%clk 0:01:35.9]} 19. Qf3
{[%clk 0:02:18]} 19... Re8 {[%clk 0:01:30.2]} 20. Bb2 {[%clk 0:02:11.1]} 20...
Re6 {[%clk 0:01:01.1]} 21. Ng4 {[%clk 0:02:02.2]} 21... Nxg4 {[%clk 0:00:48.4]}
22. Qxg4 {[%clk 0:02:01.6]} 22... Rg6 {[%clk 0:00:43.7]} 23. Qf3 {[%clk
0:01:55.4]} 23... Rd6 {[%clk 0:00:32.7]} 24. Rad1 {[%clk 0:01:32.3]} 24... f6
{[%clk 0:00:29.7]} 25. Rxd6 {[%clk 0:01:18.6]} 25... Qxd6 {[%clk 0:00:29.8]} 26.
Rd1 {[%clk 0:01:18.6]} 26... Qe6 {[%clk 0:00:28.9]} 27. Rd5 {[%clk 0:01:13.5]}
27... Kf7 {[%clk 0:00:27.9]} 28. Qd1 {[%clk 0:01:10.7]} 28... Qe4+ {[%clk
0:00:26.4]} 29. Kg1 {[%clk 0:01:10.2]} 29... Qxc4 {[%clk 0:00:26.4]} 30. a3
{[%clk 0:01:05.1]} 30... Re8 {[%clk 0:00:26.4]} 31. Qh5+ {[%clk 0:00:59.5]}
31... Kf8 {[%clk 0:00:17.2]} 32. Rd1 {[%clk 0:00:53]} 32... Qe2 {[%clk
0:00:14.8]} 33. Qxe2 {[%clk 0:00:30]} 33... Rxe2 {[%clk 0:00:14.8]} 34. Bd4
{[%clk 0:00:29]} 34... Ne6 {[%clk 0:00:15]} 35. Be3 {[%clk 0:00:28.3]} 35... Ke7
{[%clk 0:00:14.3]} 36. a4 {[%clk 0:00:26.4]} 36... Ra2 {[%clk 0:00:13.5]} 37. a5
{[%clk 0:00:08.9]} 37... Rxa5 {[%clk 0:00:13]} 38. Rb1 {[%clk 0:00:08.7]} 38...
f5 {[%clk 0:00:12]} 39. Rd1 {[%clk 0:00:06.2]} 39... Ra2 {[%clk 0:00:11.1]} 40.
Bd2 {[%clk 0:00:05.8]} 40... Rc2 {[%clk 0:00:10.1]} 41. Bb4+ {[%clk 0:00:05.7]}
41... Kf6 {[%clk 0:00:10.5]} 42. Rd6 {[%clk 0:00:04.4]} 42... Re2 {[%clk
0:00:09.4]} 43. Rd7 {[%clk 0:00:04.1]} 43... a5 {[%clk 0:00:08.7]} 44. Bc3+
{[%clk 0:00:03]} 44... Kg6 {[%clk 0:00:08.2]} 45. Rd6 {[%clk 0:00:03.1]} 45...
b5 {[%clk 0:00:07.6]} 46. Bxa5 {[%clk 0:00:03.1]} 46... Kf7 {[%clk 0:00:05.5]}
47. Rb6 {[%clk 0:00:03.4]} 47... Re5 {[%clk 0:00:03.8]} 48. Bb4 {[%clk 0:00:03]}
48... Rd5 {[%clk 0:00:03.8]} 49. Bc3 {[%clk 0:00:03.2]} 49... g6 {[%clk
0:00:02.6]} 50. Bb4 {[%clk 0:00:03.4]} 50... g5 {[%clk 0:00:01.8]} 51. Kg2
{[%clk 0:00:03.8]} 1-0

[Event "*** Titled Tuesday Blitz"]
[Site "Chess.com"]
[Date "2021.03.09"]
[Round "6"]
[White "tandaleo"]
[Black "deribas12345"]
[Result "1-0"]
[WhiteElo "2359"]
[BlackElo "2535"]
[TimeControl "180+1"]
[EndTime "11:11:34 PST"]
[Termination "tandaleo won by checkmate"]

1. d4 {[%clk 0:03:00.9]} 1... Nf6 {[%clk 0:02:59.2]} 2. c4 {[%clk 0:03:01]} 2...
c5 {[%clk 0:02:59.5]} 3. d5 {[%clk 0:03:01.2]} 3... b5 {[%clk 0:02:59.8]} 4.
cxb5 {[%clk 0:03:01.5]} 4... a6 {[%clk 0:02:59.5]} 5. bxa6 {[%clk 0:03:02]} 5...
Bxa6 {[%clk 0:02:57.4]} 6. Nc3 {[%clk 0:03:01.7]} 6... d6 {[%clk 0:02:57.9]} 7.
e4 {[%clk 0:03:01.8]} 7... Bxf1 {[%clk 0:02:58.7]} 8. Kxf1 {[%clk 0:03:02.3]}
8... g6 {[%clk 0:02:59.6]} 9. Nf3 {[%clk 0:03:01.2]} 9... Qc8 {[%clk 0:03:00]}
10. a4 {[%clk 0:02:53.2]} 10... Bg7 {[%clk 0:02:52.5]} 11. Qe2 {[%clk
0:02:48.6]} 11... O-O {[%clk 0:02:51.1]} 12. Bg5 {[%clk 0:02:43.4]} 12... Na6
{[%clk 0:02:46.5]} 13. Nd2 {[%clk 0:02:29.8]} 13... h6 {[%clk 0:02:40.3]} 14.
Be3 {[%clk 0:02:23.8]} 14... Nb4 {[%clk 0:02:37.1]} 15. f3 {[%clk 0:02:19.6]}
15... Nd7 {[%clk 0:02:25.7]} 16. Kf2 {[%clk 0:02:16.6]} 16... Nc2 {[%clk
0:02:25.3]} 17. Rac1 {[%clk 0:02:13.4]} 17... Nxe3 {[%clk 0:02:25.4]} 18. Kxe3
{[%clk 0:02:11.2]} 18... Bd4+ {[%clk 0:02:24.5]} 19. Kd3 {[%clk 0:02:08.4]}
19... Qa6+ {[%clk 0:02:19.1]} 20. Kc2 {[%clk 0:02:04.9]} 20... Qb7 {[%clk
0:01:58.2]} 21. Qb5 {[%clk 0:02:04]} 21... Qa7 {[%clk 0:01:54.2]} 22. Qb3 {[%clk
0:01:50.5]} 22... Bxc3 {[%clk 0:01:50.2]} 23. bxc3 {[%clk 0:01:46.9]} 23... Rfb8
{[%clk 0:01:49.1]} 24. Qa2 {[%clk 0:01:46.8]} 24... c4 {[%clk 0:01:34.4]} 25.
Rb1 {[%clk 0:01:44.1]} 25... Qf2 {[%clk 0:01:32.1]} 26. Rxb8+ {[%clk 0:01:41.4]}
26... Rxb8 {[%clk 0:01:31.9]} 27. Rb1 {[%clk 0:01:41.4]} 27... Ra8 {[%clk
0:01:26.3]} 28. Qxc4 {[%clk 0:01:40.3]} 28... Nc5 {[%clk 0:01:26.3]} 29. Ra1
{[%clk 0:01:28.3]} 29... Qxg2 {[%clk 0:01:12]} 30. a5 {[%clk 0:01:28]} 30... f5
{[%clk 0:00:47]} 31. a6 {[%clk 0:01:18.4]} 31... fxe4 {[%clk 0:00:46.8]} 32.
fxe4 {[%clk 0:01:19.3]} 32... Ra7 {[%clk 0:00:40.9]} 33. e5 {[%clk 0:00:32]}
33... Qg5 {[%clk 0:00:39.8]} 34. exd6 {[%clk 0:00:30.6]} 34... Qf5+ {[%clk
0:00:37.8]} 35. Kd1 {[%clk 0:00:25.8]} 35... exd6 {[%clk 0:00:37.9]} 36. Qb5
{[%clk 0:00:20.7]} 36... Qh5+ {[%clk 0:00:33.2]} 37. Kc1 {[%clk 0:00:19.6]}
37... Re7 {[%clk 0:00:22.9]} 38. a7 {[%clk 0:00:17.4]} 38... Qf5 {[%clk
0:00:05]} 39. a8=Q+ {[%clk 0:00:16.1]} 39... Kf7 {[%clk 0:00:05.4]} 40. Qf1
{[%clk 0:00:05.4]} 40... Nd3+ {[%clk 0:00:04.7]} 41. Kb1 {[%clk 0:00:01.8]}
41... Nf4+ {[%clk 0:00:04.4]} 42. Kb2 {[%clk 0:00:01.6]} 42... Qe4 {[%clk
0:00:02.1]} 43. Qxf4+ {[%clk 0:00:01.1]} 43... Qxf4 {[%clk 0:00:02.1]} 44. Rf1
{[%clk 0:00:02]} 44... Qxf1 {[%clk 0:00:01.8]} 45. Nxf1 {[%clk 0:00:02.9]} 45...
Re2+ {[%clk 0:00:02.1]} 46. Kb3 {[%clk 0:00:03.7]} 46... Re5 {[%clk 0:00:02.8]}
47. Ng3 {[%clk 0:00:04]} 47... Kf6 {[%clk 0:00:03.3]} 48. Qf8+ {[%clk
0:00:04.2]} 48... Kg5 {[%clk 0:00:03.5]} 49. h4+ {[%clk 0:00:04.7]} 49... Kxh4
{[%clk 0:00:03.3]} 50. Qf4+ {[%clk 0:00:05.1]} 50... Kh3 {[%clk 0:00:03.7]} 51.
Ne4 {[%clk 0:00:05.1]} 51... Rf5 {[%clk 0:00:03.2]} 52. Qg3# {[%clk 0:00:05.4]}
1-0

[Event "*** Titled Tuesday Blitz"]
[Site "Chess.com"]
[Date "2021.03.09"]
[Round "6"]
[White "ViktoriyaTarasova"]
[Black "BigAl"]
[Result "1/2-1/2"]
[WhiteElo "2326"]
[BlackElo "2499"]
[TimeControl "180+1"]
[EndTime "11:11:34 PST"]
[Termination "Game drawn by repetition"]

1. d4 {[%clk 0:03:00.9]} 1... g6 {[%clk 0:02:59.5]} 2. c4 {[%clk 0:03:00.9]}
2... Bg7 {[%clk 0:02:59.8]} 3. e4 {[%clk 0:03:01.2]} 3... d6 {[%clk 0:03:00.6]}
4. Nc3 {[%clk 0:03:01.3]} 4... Nf6 {[%clk 0:03:01.5]} 5. h3 {[%clk 0:03:00.6]}
5... O-O {[%clk 0:03:02.1]} 6. Be3 {[%clk 0:03:00.8]} 6... e5 {[%clk 0:03:02.6]}
7. d5 {[%clk 0:03:00.6]} 7... c6 {[%clk 0:02:56]} 8. g4 {[%clk 0:02:58.6]} 8...
Na6 {[%clk 0:02:55.2]} 9. Qc2 {[%clk 0:02:53.3]} 9... cxd5 {[%clk 0:02:53.5]}
10. cxd5 {[%clk 0:02:53.1]} 10... Qa5 {[%clk 0:02:45.8]} 11. Qd2 {[%clk
0:02:41.1]} 11... Nc5 {[%clk 0:02:42.6]} 12. Bxc5 {[%clk 0:02:26.8]} 12... Qxc5
{[%clk 0:02:42.3]} 13. Rc1 {[%clk 0:02:16.4]} 13... Bd7 {[%clk 0:02:35.6]} 14.
Bd3 {[%clk 0:01:57.2]} 14... Rac8 {[%clk 0:02:25.3]} 15. Nge2 {[%clk 0:01:57]}
15... Qa5 {[%clk 0:02:25.4]} 16. O-O {[%clk 0:01:54]} 16... b5 {[%clk
0:02:17.5]} 17. a3 {[%clk 0:01:53.6]} 17... Qb6 {[%clk 0:02:14.8]} 18. Qe3
{[%clk 0:01:43.4]} 18... Qb8 {[%clk 0:01:55.6]} 19. Na2 {[%clk 0:01:42]} 19...
h5 {[%clk 0:01:46.3]} 20. f3 {[%clk 0:01:40.8]} 20... Kh7 {[%clk 0:01:46]} 21.
Rxc8 {[%clk 0:01:36]} 21... Rxc8 {[%clk 0:01:45.3]} 22. Rc1 {[%clk 0:01:27.6]}
22... Rxc1+ {[%clk 0:01:36.7]} 23. Qxc1 {[%clk 0:01:22.7]} 23... hxg4 {[%clk
0:01:34.5]} 24. hxg4 {[%clk 0:01:21.4]} 24... Kg8 {[%clk 0:01:32.6]} 25. Kg2
{[%clk 0:01:21]} 25... Nh7 {[%clk 0:01:32.3]} 26. Ng3 {[%clk 0:01:18.5]} 26...
Qd8 {[%clk 0:01:30.3]} 27. Nb4 {[%clk 0:01:12.2]} 27... Qh4 {[%clk 0:01:27.4]}
28. Nc6 {[%clk 0:01:06.5]} 28... Bh6 {[%clk 0:01:18.7]} 29. Qh1 {[%clk
0:00:46.7]} 29... Qg5 {[%clk 0:01:19]} 30. Qd1 {[%clk 0:00:44.2]} 30... Qe3
{[%clk 0:01:09.3]} 31. Qe2 {[%clk 0:00:40.3]} 31... Qb6 {[%clk 0:01:00.8]} 32.
Bxb5 {[%clk 0:00:37.3]} 32... Bf4 {[%clk 0:00:54.1]} 33. Ne7+ {[%clk 0:00:36.4]}
33... Kf8 {[%clk 0:00:51]} 34. Bxd7 {[%clk 0:00:33.7]} 34... Kxe7 {[%clk
0:00:48.9]} 35. Bc6 {[%clk 0:00:26.5]} 35... Bxg3 {[%clk 0:00:43.2]} 36. Kxg3
{[%clk 0:00:25.9]} 36... Qg1+ {[%clk 0:00:43.8]} 37. Qg2 {[%clk 0:00:26.4]}
37... Qc1 {[%clk 0:00:41.9]} 38. Qf2 {[%clk 0:00:24.4]} 38... Ng5 {[%clk
0:00:33]} 39. Kg2 {[%clk 0:00:20.5]} 39... Kf6 {[%clk 0:00:30]} 40. a4 {[%clk
0:00:17]} 40... a5 {[%clk 0:00:20.8]} 41. Bb5 {[%clk 0:00:16.6]} 41... Kg7
{[%clk 0:00:18.9]} 42. Qe2 {[%clk 0:00:13.9]} 42... Qb1 {[%clk 0:00:15.7]} 43.
Qf2 {[%clk 0:00:13.6]} 43... Qc1 {[%clk 0:00:15.9]} 44. Qe2 {[%clk 0:00:13.2]}
44... Qc5 {[%clk 0:00:15.9]} 45. Qd2 {[%clk 0:00:11.9]} 45... f6 {[%clk
0:00:14.1]} 46. Qf2 {[%clk 0:00:11.7]} 46... Qb4 {[%clk 0:00:14.2]} 47. Qa7+
{[%clk 0:00:10.8]} 47... Kh6 {[%clk 0:00:13.8]} 48. Qf2 {[%clk 0:00:11.4]} 48...
Qb3 {[%clk 0:00:13.8]} 49. Qe2 {[%clk 0:00:11.3]} 49... Nf7 {[%clk 0:00:13.2]}
50. Qd2+ {[%clk 0:00:11]} 50... Kg7 {[%clk 0:00:12.7]} 51. Qf2 {[%clk
0:00:10.7]} 51... Qb4 {[%clk 0:00:11.9]} 52. Qe2 {[%clk 0:00:10.8]} 52... Nd8
{[%clk 0:00:11.3]} 53. Qc2 {[%clk 0:00:10.4]} 53... Nf7 {[%clk 0:00:11.1]} 54.
Qf2 {[%clk 0:00:10.2]} 54... Kh6 {[%clk 0:00:11.1]} 55. Qe3+ {[%clk 0:00:09.9]}
55... Ng5 {[%clk 0:00:09.9]} 56. Qf2 {[%clk 0:00:10.5]} 56... Qb3 {[%clk
0:00:08.3]} 57. Qe2 {[%clk 0:00:10.8]} 57... Qb4 {[%clk 0:00:07.4]} 58. Qf2
{[%clk 0:00:11.3]} 1/2-1/2

[Event "*** Titled Tuesday Blitz"]
[Site "Chess.com"]
[Date "2021.03.09"]
[Round "6"]
[White "Mazanchenko_Dmitry"]
[Black "ulkaf961"]
[Result "1-0"]
[WhiteElo "2165"]
[BlackElo "2382"]
[TimeControl "180+1"]
[EndTime "11:11:35 PST"]
[Termination "Mazanchenko_Dmitry won by resignation"]

1. e4 {[%clk 0:03:00.9]} 1... e6 {[%clk 0:02:56.6]} 2. d4 {[%clk 0:02:38.7]}
2... d5 {[%clk 0:02:56.3]} 3. Nc3 {[%clk 0:02:39.6]} 3... Nf6 {[%clk 0:02:55.5]}
4. Bg5 {[%clk 0:02:25.6]} 4... Be7 {[%clk 0:02:55]} 5. e5 {[%clk 0:02:25.4]}
5... Nfd7 {[%clk 0:02:54.8]} 6. h4 {[%clk 0:02:25.5]} 6... h6 {[%clk 0:02:54]}
7. Bxe7 {[%clk 0:02:23.9]} 7... Qxe7 {[%clk 0:02:53.6]} 8. Qg4 {[%clk
0:02:24.5]} 8... O-O {[%clk 0:02:49.8]} 9. O-O-O {[%clk 0:02:23.4]} 9... a6
{[%clk 0:02:44.3]} 10. f4 {[%clk 0:02:22]} 10... c5 {[%clk 0:02:44.1]} 11. dxc5
{[%clk 0:02:20.4]} 11... Nc6 {[%clk 0:02:42.5]} 12. Rh3 {[%clk 0:02:17.4]} 12...
f6 {[%clk 0:02:23.4]} 13. exf6 {[%clk 0:02:14.4]} 13... Qxf6 {[%clk 0:02:15.1]}
14. Nge2 {[%clk 0:02:04]} 14... Nxc5 {[%clk 0:02:13.5]} 15. Qf3 {[%clk
0:01:50.1]} 15... b5 {[%clk 0:02:00.8]} 16. Qe3 {[%clk 0:01:40.8]} 16... Na4
{[%clk 0:01:35.6]} 17. Nxa4 {[%clk 0:01:28.9]} 17... bxa4 {[%clk 0:01:35.6]} 18.
g4 {[%clk 0:01:29.5]} 18... e5 {[%clk 0:00:54.7]} 19. f5 {[%clk 0:01:26.9]}
19... d4 {[%clk 0:00:50.4]} 20. Qa3 {[%clk 0:01:24.1]} 20... e4 {[%clk
0:00:41.1]} 21. Nf4 {[%clk 0:01:17.9]} 21... Qe5 {[%clk 0:00:38.6]} 22. Bc4+
{[%clk 0:01:16.3]} 22... Kh7 {[%clk 0:00:35]} 23. Qxf8 {[%clk 0:01:13.6]} 23...
Qxf4+ {[%clk 0:00:35.1]} 24. Kb1 {[%clk 0:01:12.4]} 24... Bb7 {[%clk 0:00:23.8]}
25. Qf7 {[%clk 0:01:03.6]} 25... Rb8 {[%clk 0:00:11.2]} 26. Rf1 {[%clk
0:01:02.3]} 26... Qxg4 {[%clk 0:00:09.5]} 27. Rhh1 {[%clk 0:00:39.8]} 27... Ne5
{[%clk 0:00:09.5]} 28. Qc7 {[%clk 0:00:38.4]} 28... Nxc4 {[%clk 0:00:09.7]} 29.
Qxb8 {[%clk 0:00:38.1]} 29... Nd2+ {[%clk 0:00:09.9]} 30. Ka1 {[%clk 0:00:36.7]}
30... Nxf1 {[%clk 0:00:10.8]} 31. Rxf1 {[%clk 0:00:35.3]} 31... Qe2 {[%clk
0:00:07.7]} 32. Rh1 {[%clk 0:00:32.5]} 32... Qg2 {[%clk 0:00:05.9]} 33. Qh2
{[%clk 0:00:28]} 33... e3 {[%clk 0:00:04.5]} 34. Qxg2 {[%clk 0:00:26.3]} 34...
Bxg2 {[%clk 0:00:04.6]} 35. Rg1 {[%clk 0:00:24.6]} 35... Be4 {[%clk 0:00:04.3]}
36. Kb1 {[%clk 0:00:20.5]} 36... Bxf5 {[%clk 0:00:04.5]} 37. Kc1 {[%clk
0:00:19.3]} 37... g5 {[%clk 0:00:03.4]} 38. hxg5 {[%clk 0:00:18.8]} 38... hxg5
{[%clk 0:00:03.6]} 39. Rxg5 {[%clk 0:00:18.8]} 39... e2 {[%clk 0:00:02.6]} 40.
Rg1 {[%clk 0:00:18.9]} 40... Bh3 {[%clk 0:00:02.6]} 41. Re1 {[%clk 0:00:18.6]}
41... Bf1 {[%clk 0:00:03.5]} 42. Kd2 {[%clk 0:00:18.6]} 42... Kg6 {[%clk
0:00:04.2]} 43. Rxe2 {[%clk 0:00:19]} 43... Bxe2 {[%clk 0:00:04]} 44. Kxe2
{[%clk 0:00:19.9]} 44... Kf5 {[%clk 0:00:04.3]} 45. Kd3 {[%clk 0:00:20.8]} 45...
Ke5 {[%clk 0:00:05]} 46. Kc4 {[%clk 0:00:20.4]} 46... Ke4 {[%clk 0:00:05]} 47.
Kb4 {[%clk 0:00:19.4]} 47... d3 {[%clk 0:00:03.9]} 48. cxd3+ {[%clk 0:00:19]}
48... Kxd3 {[%clk 0:00:04.1]} 49. Kxa4 {[%clk 0:00:19.5]} 49... Kc2 {[%clk
0:00:04.3]} 50. b4 {[%clk 0:00:19.2]} 50... Kc3 {[%clk 0:00:04.5]} 51. Ka5
{[%clk 0:00:17.7]} 51... Kc4 {[%clk 0:00:05]} 52. a4 {[%clk 0:00:17.7]} 52...
Kb3 {[%clk 0:00:04.6]} 53. b5 {[%clk 0:00:17.6]} 53... axb5 {[%clk 0:00:03]} 54.
axb5 {[%clk 0:00:18.5]} 1-0